Workbook

Sheet 基本給設計
A1: 基本給設計シート
A3: （１）基礎データ入力
A5: ①高卒初任給（１８歳） | E5: 150000 | F5: 円 | G5: ㉖昇格昇給ピッチ ： 習熟昇給ピッチ
G6: ↓ | I6: ↓
A7: ②大卒初任給（２２歳） | E7: 200000 | G7: 1 | H7: ： | I7: 2
A9: ③40歳標準的課長基本給 | E9: 370000 | F9: 円
A11: ④年齢給ピッチ：職能給ピッチ | E11: 1 | F11: ： | G11: 2
A13: ⑤１８歳時点の年齢給／基本給 | E13: 60 | F13: %
A15: （２）年齢給ピッチ配分
B17: ⑥18～22歳 | E17: 1.05 | F17: 倍 | G17: 4 | H17: 年
B19: ⑦23～30歳 | E19: 1.2 | F19: 倍 | G19: 8 | H19: 年
B21: ⑧41～48歳 | E21: 0.5 | F21: 倍 | G21: 8 | H21: 年
B23: ⑨49～54歳 | E23: 0 | F23: 倍 | G23: 5 | H23: 年
B25: ⑩54～59歳 | E25: -1 | F25: 倍 | G25: 5 | H25: 年
A27: （4）演算式 | G27: （３）モデル年数表
G29: 資格等級 | H29: モデル滞留年数 | I29: 年齢 | J29: 上限年数
G30: 16
G31: 15
G32: 14
G33: 13
B34: ⑪ | C34: 平均基本給ピッチ | G34: 12
C35: ③－① | D35: ＝ | E35: 10000 | F35: ※百円未満四捨五入 | G35: 11
C36: 22 | G36: 10
G37: 9 | H37: 10 | J37: 10
B38: ⑫ | C38: 平均年齢給ピッチ | G38: 8 | H38: 6 | J38: 12
C39: ⑪×④の比率 | D39: ＝ | E39: 3300 | F39: ※百円未満四捨五入 | G39: 7 | H39: 6 | J39: 12
G40: 6 | H40: 6 | J40: 12
B41: ⑬ | C41: 平均職能給ピッチ | G41: 5 | H41: 4 | J41: 8
C42: ⑪－⑫ | D42: ＝ | E42: 6700 | F42: ※百円未満四捨五入 | G42: 4 | H42: 4 | J42: 8
G43: 3 | H43: 2 | J43: 4
B44: ⑭ | C44: 平均昇格昇給ピッチ | G44: 2 | H44: 2 | J44: 4
C45: ⑬×⑥の比率 | D45: ＝ | E45: 2200 | F45: ※百円未満四捨五入 | G45: 1 | H45: 2 | J45: 4
B47: ⑮ | C47: 平均習熟昇給ピッチ
C48: ⑬－⑭ | D48: ＝ | E48: 4500
B50: ⑯ | C50: 年齢給ピッチ【a・b・d・e・fは⑫×⑥～⑩の自動計算、c（31歳～40歳）のみ残差計算】
C52: a.18～22 | D52: ⑫× | E52: 1.05 | F52: →→→→→ | G52: 3500 | H52: ⑲ 百円未満四捨五入
C54: b.23～30 | D54: ⑫× | E54: 1.2 | F54: →→→→→ | G54: 4000 | H54: ⑳ ※以下同様
C56: c.31～40 | D56: ｛⑫×22-(⑲×⑥の年＋⑳×⑦の年｝/10＝ | G56: 2700
C58: d.41～48 | D58: ⑫× | E58: 0.5 | F58: →→→→→ | G58: 1700
C60: e.49～54 | D60: ⑫× | E60: 0 | F60: →→→→→ | G60: 0
C62: f.55～59 | D62: ⑫× | E62: -1 | F62: →→→→→ | G62: -3300
B64: お試し版のため各シートの一部が非表示になっています。
C65: このシートでは黄色のセルのみ入力が可能です。

Sheet 年齢給表
A1: 年齢給表
D2: ① | F2: ④
B3: 高卒初任給（１８歳） | D3: 150000 | E3: × | F3: 60 | G3: % = | H3: 90000 | I3: ⑰
B5: ※昇給ピッチには⑯年齢給ピッチが入る
B6: 年齢 | C6: 昇給ピッチ | D6: 年齢給
B7: 18 | C7: 0 | D7: 90000
B8: 19 | C8: 3,500 | D8: 93500
B9: 20 | C9: 3,500 | D9: 97000
B10: 21 | C10: 3,500 | D10: 100500
B11: 22 | C11: 3,500 | D11: 104000 | E11: ㉑
B12: 23 | C12: 4,000 | D12: 108000
B13: 24 | C13: 4,000 | D13: 112000
B14: 25 | C14: 4,000 | D14: 116000
B15: 26 | C15: 4,000 | D15: 120000
B16: 27 | C16: 4,000 | D16: 124000
B17: 28 | C17: 4,000 | D17: 128000
B18: 29 | C18: 4,000 | D18: 132000
B19: 30 | C19: 4,000 | D19: 136000
B20: 31 | C20: 2,700 | D20: 138700
B21: 32 | C21: 2,700 | D21: 141400
B22: 33 | C22: 2,700 | D22: 144100
B23: 34 | C23: 2,700 | D23: 146800
B24: 35 | C24: 2,700 | D24: 149500
B25: 36 | C25: 2,700 | D25: 152200
B26: 37 | C26: 4,000 | D26: 156200
B27: 38 | C27: 2,700 | D27: 158900
B28: 39 | C28: 2,700 | D28: 161600
B29: 40 | C29: 2,700 | D29: 164300
B30: 41 | C30: 1,700 | D30: 166000
B31: 42 | C31: 1,700 | D31: 167700
B32: 43 | C32: 1,700 | D32: 169400
B33: 44 | C33: 1,700 | D33: 171100
B34: 45 | C34: 1,700 | D34: 172800
B35: 46 | C35: 1,700 | D35: 174500
B36: 47 | C36: 1,700 | D36: 176200
B37: 48 | C37: 1,700 | D37: 177900
B38: 49 | C38: 0 | D38: 177900
B39: 50 | C39: 0 | D39: 177900
B40: 51 | C40: 0 | D40: 177900
B41: 52 | C41: 0 | D41: 177900
B42: 53 | C42: 0 | D42: 177900
B43: 54 | C43: 0 | D43: 177900
B44: 55 | C44: -3,300 | D44: 174600
B45: 56 | C45: -3,300 | D45: 171300
B46: 57 | C46: -3,300 | D46: 168000
B47: 58 | C47: -3,300 | D47: 164700
B48: 59 | C48: -3,300 | D48: 161400

Sheet 職能給設計
A1: 職能給設計シート
A3: ⑮習熟昇給
A4: 平均ピッチ | C4: 4500
C6: 等級 | D6: モデル年 | E6: 年齢 | F6: 係数 | G6: ピッチ(⑮×係数) | H6: ピッチ×モデル（年）
C7: 16 | I7: p
C8: 15 | I8: o
C9: 14 | I9: n
C10: 13 | I10: m
C11: 12 | I11: l
C12: 11 | I12: k
C13: 10 | I13: j
C14: 9 | D14: 10 | E14: 50 | F14: 1.00 | G14: 4500 | H14: 45000 | I14: i
C15: 8 | D15: 6 | E15: 44 | F15: 1.00 | G15: 4500 | H15: 27000 | I15: h
C16: 7 | D16: 6 | E16: 38 | F16: 1.00 | G16: 4500 | H16: 27000 | I16: g
C17: 6 | D17: 6 | E17: 32 | F17: 1.00 | G17: 4500 | H17: 27000 | I17: f
C18: 5 | D18: 4 | E18: 28 | F18: 1.00 | G18: 4500 | H18: 18000 | I18: e
C19: 4 | D19: 4 | E19: 24 | F19: 1.00 | G19: 4500 | H19: 18000 | I19: d
C20: 3 | D20: 2 | E20: 22 | F20: 1.00 | G20: 4500 | H20: 9000 | I20: c
C21: 2 | D21: 2 | E21: 20 | F21: 1.00 | G21: 4500 | H21: 9000 | I21: b
C22: 1 | D22: 2 | E22: 18 | F22: 1.00 | G22: 4500 | H22: 9000 | I22: a
C27: ※モデル年・係数は基本給設計シートで変更できます。
A32: ⑭昇格昇給
A33: 平均ピッチ | C33: 2200
C35: 等級 | D35: モデル年 | E35: 年齢 | F35: 係数 | G35: ピッチ(⑭×係数) | H35: ピッチ×(年)
C36: 16
C37: 15
C38: 14
C39: 13
C40: 12
C41: 11
C42: 10
C43: 9 | D43: 10 | E43: 50 | F43: 1.00 | G43: 2200 | H43: 13200
C44: 8 | D44: 6 | E44: 44 | F44: 1.00 | G44: 2200 | H44: 13200
C45: 7 | D45: 6 | E45: 38 | F45: 1.00 | G45: 2200 | H45: 13200
C46: 6 | D46: 6 | E46: 32 | F46: 1.00 | G46: 2200 | H46: 8800
C47: 5 | D47: 4 | E47: 28 | F47: 1.00 | G47: 2200 | H47: 8800
C48: 4 | D48: 4 | E48: 24 | F48: 1.00 | G48: 2200 | H48: 4400
C49: 3 | D49: 2 | E49: 22 | F49: 1.00 | G49: 2200 | H49: 4400
C50: 2 | D50: 2 | E50: 20 | F50: 1.00 | G50: 2200 | H50: 4400
C51: 1 | D51: 2 | E51: 18 | F51: 0.00 | G51: 0 | H51: 0
C68: 等級数
C69: 9
C71: 等級 | D71: 滞留年数 | E71: 上限年数
C72: 1 | D72: 2 | E72: 4
C73: 2 | D73: 2 | E73: 4
C74: 3 | D74: 2 | E74: 4
C75: 4 | D75: 4 | E75: 8
C76: 5 | D76: 4 | E76: 8
C77: 6 | D77: 6 | E77: 12
C78: 7 | D78: 6 | E78: 12
C79: 8 | D79: 6 | E79: 12
C80: 9 | D80: 10 | E80: 10
C81: 10
C82: 11
C83: 12
C84: 13
C85: 14
C86: 15
C87: 16

Sheet 職能給スケール
A1: 職能給スケール
A3: （１） | B3: 職能給最低額
C5: ①高卒初任給
C6: 150000
C8: ⑰１８歳年齢給
C9: 90000
C11: ⑱ 1級の初号賃金 （①-⑰）
C12: 60000
A26: （２） | B26: サラリースケール
E28: ⑮ | F28: ⑭
B29: 等級 | C29: モデル年(A) | D29: 上限（Ｂ） | E29: 習熟昇給 | F29: 昇格昇給 | G29: 初号(D) | H29: 上限（Ｅ） | I29: 張り出し（F）
B30: 16
B31: 15
B32: 14
B33: 13
B34: 12
B35: 11
B36: 10
B37: 9 | C37: 10 | D37: 10 | E37: 4500 | F37: 13200 | G37: 274400 | H37: 319400
B38: 8 | C38: 6 | D38: 12 | E38: 4500 | F38: 13200 | G38: 234200 | H38: 288200
B39: 7 | C39: 6 | D39: 12 | E39: 4500 | F39: 13200 | G39: 194000 | H39: 248000
B40: 6 | C40: 6 | D40: 12 | E40: 4500 | F40: 8800 | G40: 153800 | H40: 207800
B41: 5 | C41: 4 | D41: 8 | E41: 4500 | F41: 8800 | G41: 127000 | H41: 163000
B42: 4 | C42: 4 | D42: 8 | E42: 4500 | F42: 4400 | G42: 100200 | H42: 136200
B43: 3 | C43: 2 | D43: 4 | E43: 4500 | F43: 4400 | G43: 86800 | H43: 104800
B44: 2 | C44: 2 | D44: 4 | E44: 4500 | F44: 4400 | G44: 73400 | H44: 91400
B45: 1 | C45: 2 | D45: 4 | E45: 4500 | F45: 0 | G45: 60000 | H45: 78000

Sheet 職能給表
A1: 職能給表
A3: （4） | B3: 号俸表
B4: ※（3）のサラリースケールを展開
B5: 号／等級 | C5: 1 | D5: 2 | E5: 3 | F5: 4 | G5: 5 | H5: 6 | I5: 7 | J5: 8 | K5: 9 | L5: 10 | M5: 11 | N5: 12 | O5: 13 | P5: 14 | Q5: 15 | R5: 16
B6: 1 | C6: 60000 | D6: 73400 | E6: 86800 | F6: 100200 | G6: 127000 | H6: 153800 | I6: 194000 | J6: 234200 | K6: 274400
B7: 2 | C7: 64500 | D7: 77900 | E7: 91300 | F7: 104700 | G7: 131500 | H7: 158300 | I7: 198500 | J7: 238700 | K7: 278900
B8: 3 | C8: 69000 | D8: 82400 | E8: 95800 | F8: 109200 | G8: 136000 | H8: 162800 | I8: 203000 | J8: 243200 | K8: 283400
B9: 4 | C9: 73500 | D9: 86900 | E9: 100300 | F9: 113700 | G9: 140500 | H9: 167300 | I9: 207500 | J9: 247700 | K9: 287900
B10: 5 | C10: 78000 | D10: 91400 | E10: 104800 | F10: 118200 | G10: 145000 | H10: 171800 | I10: 212000 | J10: 252200 | K10: 292400
B11: 6 | F11: 122700 | G11: 149500 | H11: 176300 | I11: 216500 | J11: 256700 | K11: 296900
B12: 7 | F12: 127200 | G12: 154000 | H12: 180800 | I12: 221000 | J12: 261200 | K12: 301400
B13: 8 | F13: 131700 | G13: 158500 | H13: 185300 | I13: 225500 | J13: 265700 | K13: 305900
B14: 9 | F14: 136200 | G14: 163000 | H14: 189800 | I14: 230000 | J14: 270200 | K14: 310400
B15: 10 | H15: 194300 | I15: 234500 | J15: 274700 | K15: 314900
B16: 11 | H16: 198800 | I16: 239000 | J16: 279200 | K16: 319400
B17: 12 | H17: 203300 | I17: 243500 | J17: 283700
B18: 13 | H18: 207800 | I18: 248000 | J18: 288200
B19: 14
B20: 15
B21: 16
B22: 17
B23: 18
B24: 19
B25: 20
B26: 21
B27: 22
B28: 23
B29: 24
B30: 25
B31: 26
B32: 27
B33: 28
B34: 29
B35: 30
A37: （5） | B37: 段階号俸表
B38: ※（３）の号俸標準評価で５号昇給を展開
B39: 号／等級 | C39: 1 | D39: 2 | E39: 3 | F39: 4 | G39: 5 | H39: 6 | I39: 7 | J39: 8 | K39: 9 | L39: 10 | M39: 11 | N39: 12 | O39: 13 | P39: 14 | Q39: 15 | R39: 16
B40: 1 | C40: 60000 | D40: 73400 | E40: 86800 | F40: 100200 | G40: 127000 | H40: 153800 | I40: 194000 | J40: 234200 | K40: 274400
B41: 2 | C41: 60900 | D41: 74300 | E41: 87700 | F41: 101100 | G41: 127900 | H41: 154700 | I41: 194900 | J41: 235100 | K41: 275300
B42: 3 | C42: 61800 | D42: 75200 | E42: 88600 | F42: 102000 | G42: 128800 | H42: 155600 | I42: 195800 | J42: 236000 | K42: 276200
B43: 4 | C43: 62700 | D43: 76100 | E43: 89500 | F43: 102900 | G43: 129700 | H43: 156500 | I43: 196700 | J43: 236900 | K43: 277100
B44: 5 | C44: 63600 | D44: 77000 | E44: 90400 | F44: 103800 | G44: 130600 | H44: 157400 | I44: 197600 | J44: 237800 | K44: 278000
B45: 6 | C45: 64500 | D45: 77900 | E45: 91300 | F45: 104700 | G45: 131500 | H45: 158300 | I45: 198500 | J45: 238700 | K45: 278900
B46: 7 | C46: 65400 | D46: 78800 | E46: 92200 | F46: 105600 | G46: 132400 | H46: 159200 | I46: 199400 | J46: 239600 | K46: 279800
B47: 8 | C47: 66300 | D47: 79700 | E47: 93100 | F47: 106500 | G47: 133300 | H47: 160100 | I47: 200300 | J47: 240500 | K47: 280700
B48: 9 | C48: 67200 | D48: 80600 | E48: 94000 | F48: 107400 | G48: 134200 | H48: 161000 | I48: 201200 | J48: 241400 | K48: 281600
B49: 10 | C49: 68100 | D49: 81500 | E49: 94900 | F49: 108300 | G49: 135100 | H49: 161900 | I49: 202100 | J49: 242300 | K49: 282500
B50: 11 | C50: 69000 | D50: 82400 | E50: 95800 | F50: 109200 | G50: 136000 | H50: 162800 | I50: 203000 | J50: 243200 | K50: 283400
B51: 12 | C51: 69900 | D51: 83300 | E51: 96700 | F51: 110100 | G51: 136900 | H51: 163700 | I51: 203900 | J51: 244100 | K51: 284300
B52: 13 | C52: 70800 | D52: 84200 | E52: 97600 | F52: 111000 | G52: 137800 | H52: 164600 | I52: 204800 | J52: 245000 | K52: 285200
B53: 14 | C53: 71700 | D53: 85100 | E53: 98500 | F53: 111900 | G53: 138700 | H53: 165500 | I53: 205700 | J53: 245900 | K53: 286100
B54: 15 | C54: 72600 | D54: 86000 | E54: 99400 | F54: 112800 | G54: 139600 | H54: 166400 | I54: 206600 | J54: 246800 | K54: 287000
B55: 16 | C55: 73500 | D55: 86900 | E55: 100300 | F55: 113700 | G55: 140500 | H55: 167300 | I55: 207500 | J55: 247700 | K55: 287900
B56: 17 | C56: 74400 | D56: 87800 | E56: 101200 | F56: 114600 | G56: 141400 | H56: 168200 | I56: 208400 | J56: 248600 | K56: 288800
B57: 18 | C57: 75300 | D57: 88700 | E57: 102100 | F57: 115500 | G57: 142300 | H57: 169100 | I57: 209300 | J57: 249500 | K57: 289700
B58: 19 | C58: 76200 | D58: 89600 | E58: 103000 | F58: 116400 | G58: 143200 | H58: 170000 | I58: 210200 | J58: 250400 | K58: 290600
B59: 20 | C59: 77100 | D59: 90500 | E59: 103900 | F59: 117300 | G59: 144100 | H59: 170900 | I59: 211100 | J59: 251300 | K59: 291500
B60: 21 | C60: 78000 | D60: 91400 | E60: 104800 | F60: 118200 | G60: 145000 | H60: 171800 | I60: 212000 | J60: 252200 | K60: 292400
B61: 22 | F61: 119100 | G61: 145900 | H61: 172700 | I61: 212900 | J61: 253100 | K61: 293300
B62: 23 | F62: 120000 | G62: 146800 | H62: 173600 | I62: 213800 | J62: 254000 | K62: 294200
B63: 24 | F63: 120900 | G63: 147700 | H63: 174500 | I63: 214700 | J63: 254900 | K63: 295100
B64: 25 | F64: 121800 | G64: 148600 | H64: 175400 | I64: 215600 | J64: 255800 | K64: 296000
B65: 26 | F65: 122700 | G65: 149500 | H65: 176300 | I65: 216500 | J65: 256700 | K65: 296900
B66: 27 | F66: 123600 | G66: 150400 | H66: 177200 | I66: 217400 | J66: 257600 | K66: 297800
B67: 28 | F67: 124500 | G67: 151300 | H67: 178100 | I67: 218300 | J67: 258500 | K67: 298700
B68: 29 | F68: 125400 | G68: 152200 | H68: 179000 | I68: 219200 | J68: 259400 | K68: 299600
B69: 30 | F69: 126300 | G69: 153100 | H69: 179900 | I69: 220100 | J69: 260300 | K69: 300500
B70: 31 | F70: 127200 | G70: 154000 | H70: 180800 | I70: 221000 | J70: 261200 | K70: 301400
B71: 32 | F71: 128100 | G71: 154900 | H71: 181700 | I71: 221900 | J71: 262100 | K71: 302300
B72: 33 | F72: 129000 | G72: 155800 | H72: 182600 | I72: 222800 | J72: 263000 | K72: 303200
B73: 34 | F73: 129900 | G73: 156700 | H73: 183500 | I73: 223700 | J73: 263900 | K73: 304100
B74: 35 | F74: 130800 | G74: 157600 | H74: 184400 | I74: 224600 | J74: 264800 | K74: 305000
B75: 36 | F75: 131700 | G75: 158500 | H75: 185300 | I75: 225500 | J75: 265700 | K75: 305900
B76: 37 | F76: 132600 | G76: 159400 | H76: 186200 | I76: 226400 | J76: 266600 | K76: 306800
B77: 38 | F77: 133500 | G77: 160300 | H77: 187100 | I77: 227300 | J77: 267500 | K77: 307700
B78: 39 | F78: 134400 | G78: 161200 | H78: 188000 | I78: 228200 | J78: 268400 | K78: 308600
B79: 40 | F79: 135300 | G79: 162100 | H79: 188900 | I79: 229100 | J79: 269300 | K79: 309500
B80: 41 | F80: 136200 | G80: 163000 | H80: 189800 | I80: 230000 | J80: 270200 | K80: 310400
B81: 42 | H81: 190700 | I81: 230900 | J81: 271100 | K81: 311300
B82: 43 | H82: 191600 | I82: 231800 | J82: 272000 | K82: 312200
B83: 44 | H83: 192500 | I83: 232700 | J83: 272900 | K83: 313100
B84: 45 | H84: 193400 | I84: 233600 | J84: 273800 | K84: 314000
B85: 46 | H85: 194300 | I85: 234500 | J85: 274700 | K85: 314900
B86: 47 | H86: 195200 | I86: 235400 | J86: 275600 | K86: 315800
B87: 48 | H87: 196100 | I87: 236300 | J87: 276500 | K87: 316700
B88: 49 | H88: 197000 | I88: 237200 | J88: 277400 | K88: 317600
B89: 50 | H89: 197900 | I89: 238100 | J89: 278300 | K89: 318500
B90: 51 | H90: 198800 | I90: 239000 | J90: 279200 | K90: 319400
B91: 52 | H91: 199700 | I91: 239900 | J91: 280100
B92: 53 | H92: 200600 | I92: 240800 | J92: 281000
B93: 54 | H93: 201500 | I93: 241700 | J93: 281900
B94: 55 | H94: 202400 | I94: 242600 | J94: 282800
B95: 56 | H95: 203300 | I95: 243500 | J95: 283700
B96: 57 | H96: 204200 | I96: 244400 | J96: 284600
B97: 58 | H97: 205100 | I97: 245300 | J97: 285500
B98: 59 | H98: 206000 | I98: 246200 | J98: 286400
B99: 60 | H99: 206900 | I99: 247100 | J99: 287300
B100: 61 | H100: 207800 | I100: 248000 | J100: 288200
B101: 62
B102: 63
B103: 64
B104: 65
B105: 66
B106: 67
B107: 68
B108: 69
B109: 70
B110: 71
B111: 72
B112: 73
B113: 74
B114: 75
B115: 76
B116: 77
B117: 78
B118: 79
B119: 80
B120: 81
B121: 82
B122: 83
B123: 84
B124: 85
B125: 86
B126: 87
B127: 88
B128: 89
B129: 90
B130: 91
B131: 92
B132: 93
B133: 94
B134: 95
B135: 96
B136: 97
B137: 98
B138: 99
B139: 100
B140: 101

Sheet 社員別賃金一覧表
A1: 社員合計 | Q1: 現基本給合計 | R1: 現諸手当合計 | S1: 現基準内賃金合計 | T1: 新職能給原資合計 | W1: 新年齢給合計 | X1: 新職能給合計 | Y1: 調整給合計 | Z1: 新基本給合計 | AA1: 諸手当合計 | AB1: 新基準内賃金総合計 | AC1: 増加原資総合計
AA3: 基準内賃金増減
A4: 社員コード | B4: 氏名 | C4: 性別 | E4: 年齢 | F4: 配偶 | G4: 扶養 | I4: 役職 | K4: 所属 | L4: 職種 | M4: 給与年齢 | N4: 勤続年月 | O4: 現等級 | P4: 現号俸 | Q4: 現基本給計 （Ａ） | R4: 現諸手計（B） | S4: 現基準内賃金賃金合計（C） | T4: 新職能給原資 A-D | U4: 新等級 | V4: 新号俸 | W4: 新年齢給（D） | X4: 新職能給 (E) | Y4: 調整給(F) A-(D+E) | Z4: 新基本給(G) D+E+F | AA4: 諸手当 (H) | AB4: 新基準内賃金合計(I) G+H | AC4: 増加原資 (J) G-A | AD4: 職能給割合
A5: 1001 | C5: 1 | D5: 男 | E5: 59 | F5: 1 | G5: 有 | H5: 2 | I5: 1 | J5: 部長 | L5: 事務一般 | M5: 59 | N5: 40 | Q5: 500000 | R5: 91000 | S5: =SUM(Q5:R5) -> 591000 | U5: 7 | V5: 25 | AA5: 91000
A6: 1005 | C6: 1 | D6: 男 | E6: 51 | F6: 1 | G6: 有 | H6: 2 | L6: 事務一般 | M6: 51 | N6: 28 | Q6: 310000 | R6: 41000 | S6: =SUM(Q6:R6) -> 351000 | U6: 4 | V6: 8 | AA6: 41000
A7: 1007 | C7: 1 | D7: 男 | E7: 46 | F7: 1 | G7: 有 | H7: 2 | I7: 2 | J7: 課長 | L7: 事務一般 | M7: 46 | N7: 26 | Q7: 350000 | R7: 71000 | S7: 421000 | U7: 5 | V7: 12 | AA7: 71000
A8: 1008 | C8: 1 | D8: 男 | E8: 44 | F8: 1 | G8: 有 | H8: 3 | L8: 事務一般 | M8: 44 | N8: 24 | Q8: 330000 | R8: 66000 | S8: 396000 | U8: 4 | V8: 9 | AA8: 66000
A9: 1011 | C9: 1 | D9: 男 | E9: 39 | F9: 1 | G9: 有 | H9: 1 | L9: 事務一般 | M9: 39 | N9: 16 | Q9: 304000 | R9: 36000 | S9: 340000 | U9: 4 | V9: 1 | AA9: 36000
A10: 1012 | C10: 1 | D10: 男 | E10: 39 | F10: 1 | G10: 有 | H10: 2 | L10: 事務一般 | M10: 39 | N10: 15 | Q10: 260000 | R10: 46000 | S10: 306000 | U10: 4 | V10: 22 | AA10: 46000
A11: 1019 | C11: 1 | D11: 男 | E11: 34 | F11: 1 | G11: 有 | H11: 1 | L11: 事務一般 | M11: 34 | N11: 12 | Q11: 253000 | R11: 36000 | S11: 289000 | U11: 3 | V11: 1 | AA11: 36000
A12: 1020 | C12: 1 | D12: 男 | E12: 34 | F12: 2 | G12: 無 | H12: 0 | L12: 事務一般 | M12: 34 | N12: 13 | Q12: 250000 | R12: 13000 | S12: 263000 | U12: 3 | V12: 20 | AA12: 13000
A13: 1022 | C13: 1 | D13: 男 | E13: 33 | F13: 2 | G13: 無 | H13: 0 | L13: 事務一般 | M13: 33 | N13: 15 | Q13: 240000 | R13: 13000 | S13: 253000 | U13: 3 | V13: 10 | AA13: 13000
A14: 1024 | C14: 1 | D14: 男 | E14: 33 | F14: 1 | G14: 有 | H14: 0 | L14: 事務一般 | M14: 33 | N14: 7 | Q14: 232000 | R14: 8000 | S14: 240000 | U14: 3 | V14: 1 | AA14: 8000
A15: 1028 | C15: 1 | D15: 男 | E15: 28 | F15: 2 | G15: 無 | H15: 0 | L15: 事務一般 | M15: 28 | N15: 9 | Q15: 240000 | R15: 18000 | S15: 258000 | U15: 3 | V15: 1 | AA15: 18000
A16: 1029 | C16: 1 | D16: 男 | E16: 27 | F16: 2 | G16: 無 | H16: 0 | L16: 事務一般 | M16: 27 | N16: 2 | Q16: 225000 | R16: 8000 | S16: 233000 | U16: 3 | V16: 1 | AA16: 8000
A17: 1031 | C17: 1 | D17: 男 | E17: 25 | F17: 1 | G17: 有 | H17: 1 | L17: 事務一般 | M17: 25 | N17: 1 | Q17: 215000 | R17: 41000 | S17: 256000 | U17: 2 | V17: 1 | AA17: 41000
A18: 1032 | C18: 1 | D18: 男 | E18: 24 | F18: 2 | G18: 無 | H18: 0 | L18: 事務一般 | M18: 24 | N18: 1 | Q18: 200000 | R18: 8000 | S18: 208000 | U18: 2 | V18: 1 | AA18: 8000
A19: 1033 | C19: 1 | D19: 男 | E19: 23 | F19: 2 | G19: 無 | H19: 0 | L19: 事務一般 | M19: 22 | N19: 0 | Q19: 184000 | R19: 8000 | S19: 192000 | U19: 2 | V19: 1 | AA19: 8000
A20: 1034 | C20: 1 | D20: 男 | E20: 22 | F20: 2 | G20: 無 | H20: 0 | L20: 事務一般 | M20: 22 | N20: 0 | Q20: 189000 | R20: 8000 | S20: 197000 | U20: 2 | V20: 1 | AA20: 8000
A21: 1035 | C21: 1 | D21: 男 | E21: 22 | F21: 2 | G21: 無 | H21: 0 | L21: 事務一般 | M21: 22 | N21: 4 | Q21: 187000 | R21: 8000 | S21: 195000 | U21: 2 | V21: 1 | AA21: 8000
A22: 1038 | C22: 1 | D22: 男 | E22: 20 | F22: 2 | G22: 無 | H22: 0 | L22: 事務一般 | M22: 20 | N22: 2 | Q22: 180000 | R22: 8000 | S22: 188000 | U22: 1 | V22: 1 | AA22: 8000
A23: 1040 | C23: 1 | D23: 男 | E23: 18 | F23: 2 | G23: 無 | H23: 0 | L23: 事務一般 | M23: 18 | N23: 0 | Q23: 150000 | R23: 8000 | S23: 158000 | U23: 1 | V23: 1 | AA23: 8000
A24: 2002 | C24: 1 | D24: 男 | E24: 56 | F24: 1 | G24: 有 | H24: 1 | I24: 1 | J24: 部長 | L24: 営業一般 | M24: 56 | N24: 36 | Q24: 500000 | R24: 86000 | S24: 586000 | U24: 7 | V24: 1 | AA24: 86000
A25: 2006 | C25: 2 | D25: 女 | E25: 48 | F25: 2 | G25: 無 | H25: 0 | L25: 営業一般 | M25: 48 | N25: 29 | Q25: 280000 | R25: 5000 | S25: 285000 | U25: 3 | V25: 1 | AA25: 5000
A26: 2010 | C26: 1 | D26: 男 | E26: 40 | F26: 1 | G26: 有 | H26: 1 | I26: 2 | J26: 課長 | L26: 営業一般 | M26: 40 | N26: 19 | Q26: 340000 | R26: 66000 | S26: 406000 | U26: 5 | V26: 1 | AA26: 66000
A27: 2014 | C27: 1 | D27: 男 | E27: 37 | F27: 1 | G27: 有 | H27: 2 | L27: 営業一般 | M27: 37 | N27: 16 | Q27: 320000 | R27: 61000 | S27: 381000 | U27: 4 | V27: 1 | AA27: 61000
A28: 2016 | C28: 1 | D28: 男 | E28: 36 | F28: 1 | G28: 有 | H28: 1 | L28: 営業一般 | M28: 36 | N28: 14 | Q28: 282000 | R28: 41000 | S28: 323000 | U28: 4 | V28: 1 | AA28: 41000
A29: 2017 | C29: 2 | D29: 女 | E29: 36 | F29: 2 | G29: 無 | H29: 0 | L29: 営業一般 | M29: 36 | N29: 14 | Q29: 278000 | R29: 10000 | S29: 288000 | U29: 4 | V29: 1 | AA29: 10000
A30: 2021 | C30: 1 | D30: 男 | E30: 34 | F30: 1 | G30: 有 | H30: 1 | L30: 営業一般 | M30: 34 | N30: 8 | Q30: 240000 | R30: 36000 | S30: 276000 | U30: 4 | V30: 1 | AA30: 36000
A31: 2025 | C31: 1 | D31: 男 | E31: 31 | F31: 2 | G31: 無 | H31: 1 | L31: 営業一般 | M31: 31 | N31: 5 | Q31: 230000 | R31: 18000 | S31: 248000 | U31: 3 | V31: 1 | AA31: 18000
A32: 2027 | C32: 1 | D32: 男 | E32: 29 | F32: 1 | G32: 有 | H32: 0 | L32: 営業一般 | M32: 29 | N32: 9 | Q32: 225000 | R32: 18000 | S32: 243000 | U32: 3 | V32: 1 | AA32: 18000
A33: 2030 | C33: 2 | D33: 女 | E33: 26 | F33: 2 | G33: 無 | H33: 0 | L33: 営業一般 | M33: 26 | N33: 8 | Q33: 201000 | R33: 0 | S33: 201000 | U33: 2 | V33: 1 | AA33: 0
A34: 2037 | C34: 1 | D34: 男 | E34: 21 | F34: 2 | G34: 無 | H34: 0 | L34: 営業一般 | M34: 21 | N34: 2 | Q34: 174000 | R34: 13000 | S34: 187000 | U34: 2 | V34: 1 | AA34: 13000
A35: 3003 | C35: 2 | D35: 女 | E35: 54 | F35: 2 | G35: 無 | H35: 0 | L35: 営業一般 | M35: 54 | N35: 35 | Q35: 320000 | R35: 15000 | S35: 335000 | U35: 4 | V35: 1 | AA35: 15000
A36: 3004 | C36: 1 | D36: 男 | E36: 52 | F36: 1 | G36: 有 | H36: 3 | I36: 1 | J36: 部長 | L36: 製造一般 | M36: 52 | N36: 32 | Q36: 460000 | R36: 96000 | S36: 556000 | U36: 7 | V36: 1 | AA36: 96000
A37: 3009 | C37: 1 | D37: 男 | E37: 41 | F37: 1 | G37: 有 | H37: 1 | I37: 2 | J37: 課長 | L37: 製造一般 | M37: 41 | N37: 21 | Q37: 350000 | R37: 66000 | S37: 416000 | U37: 6 | V37: 1 | AA37: 66000
A38: 3013 | C38: 2 | D38: 女 | E38: 38 | F38: 2 | G38: 無 | H38: 0 | L38: 製造一般 | M38: 38 | N38: 21 | Q38: 285000 | R38: 8000 | S38: 293000 | U38: 4 | V38: 1 | AA38: 8000
A39: 3015 | C39: 2 | D39: 女 | E39: 38 | F39: 2 | G39: 無 | H39: 0 | L39: 製造一般 | M39: 38 | N39: 14 | Q39: 255000 | R39: 15000 | S39: 270000 | U39: 3 | V39: 1 | AA39: 15000
A40: 3018 | C40: 2 | D40: 女 | E40: 36 | F40: 2 | G40: 無 | H40: 0 | L40: 製造一般 | M40: 36 | N40: 15 | Q40: 275000 | R40: 20000 | S40: 295000 | U40: 3 | V40: 1 | AA40: 20000
A41: 3023 | C41: 2 | D41: 女 | E41: 33 | F41: 2 | G41: 無 | H41: 0 | L41: 製造一般 | M41: 33 | N41: 11 | Q41: 225000 | R41: 5000 | S41: 230000 | U41: 2 | V41: 1 | AA41: 5000
A42: 3026 | C42: 2 | D42: 女 | E42: 31 | F42: 2 | G42: 無 | H42: 0 | L42: 製造一般 | M42: 31 | N42: 11 | Q42: 175000 | R42: 10000 | S42: 185000 | U42: 2 | V42: 1 | AA42: 10000
A43: 3036 | C43: 2 | D43: 女 | E43: 21 | F43: 2 | G43: 無 | H43: 0 | L43: 製造一般 | M43: 21 | N43: 0 | Q43: 170000 | R43: 5000 | S43: 175000 | U43: 1 | V43: 1 | AA43: 5000
A44: 3039 | C44: 2 | D44: 女 | E44: 20 | F44: 2 | G44: 無 | H44: 0 | L44: 製造一般 | M44: 20 | N44: 1 | Q44: 150000 | R44: 5000 | S44: 155000 | U44: 1 | V44: 1 | AA44: 5000

Sheet モデル賃金表
A1: モデル賃金表
A3: 年齢 | B3: モデル条件 | E3: 基本給 | H3: 基準内手当 | L3: 所定内賃金【Ａ＋Ｂ】
B4: 等級 | C4: 役職 (例) | D4: 世帯 (例) | E4: 年齢給 | F4: 職能給 | G4: 基本給計【A】 | H4: 家族 | I4: 住宅 | J4: その他 | K4: 手当計【B】
A5: 18 | B5: 1 | E5: 90000 | F5: 60000 | G5: 150000 | L5: 150000
A6: 19 | B6: 1 | E6: 93500 | F6: 64500 | G6: 158000 | L6: 158000
A7: 20 | B7: 2 | E7: 97000 | F7: 73400 | G7: 170400 | L7: 170400
A8: 21 | B8: 2 | E8: 100500 | F8: 77900 | G8: 178400 | L8: 178400
A9: 22 | B9: 3 | E9: 104000 | F9: 86800 | G9: 190800 | L9: 190800
A10: 23 | B10: 3 | E10: 108000 | F10: 91300 | G10: 199300 | L10: 199300
A11: 24 | B11: 4 | E11: 112000 | F11: 100200 | G11: 212200 | L11: 212200
A12: 25 | B12: 4 | E12: 116000 | F12: 104700 | G12: 220700 | L12: 220700
A13: 26 | B13: 4 | E13: 120000 | F13: 109200 | G13: 229200 | L13: 229200
A14: 27 | B14: 4 | E14: 124000 | F14: 113700 | G14: 237700 | L14: 237700
A15: 28 | B15: 5 | E15: 128000 | F15: 127000 | G15: 255000 | L15: 255000
A16: 29 | B16: 5 | E16: 132000 | F16: 131500 | G16: 263500 | L16: 263500
A17: 30 | B17: 5 | E17: 136000 | F17: 136000 | G17: 272000 | L17: 272000
A18: 31 | B18: 5 | E18: 138700 | F18: 140500 | G18: 279200 | L18: 279200
A19: 32 | B19: 6 | E19: 141400 | F19: 153800 | G19: 295200 | L19: 295200
A20: 33 | B20: 6 | E20: 144100 | F20: 158300 | G20: 302400 | L20: 302400
A21: 34 | B21: 6 | E21: 146800 | F21: 162800 | G21: 309600 | L21: 309600
A22: 35 | B22: 6 | E22: 149500 | F22: 167300 | G22: 316800 | L22: 316800
A23: 36 | B23: 6 | E23: 152200 | F23: 171800 | G23: 324000 | L23: 324000
A24: 37 | B24: 6 | E24: 154900 | F24: 176300 | G24: 331200 | L24: 331200
A25: 38 | B25: 7 | E25: 157600 | F25: 194000 | G25: 351600 | L25: 351600
A26: 39 | B26: 7 | E26: 160300 | F26: 198500 | G26: 358800 | L26: 358800
A27: 40 | B27: 7 | E27: 163000 | F27: 203000 | G27: 366000 | L27: 366000
A28: 41 | B28: 7 | E28: 164700 | F28: 207500 | G28: 372200 | L28: 372200
A29: 42 | B29: 7 | E29: 166400 | F29: 212000 | G29: 378400 | L29: 378400
A30: 43 | B30: 7 | E30: 168100 | F30: 216500 | G30: 384600 | L30: 384600
A31: 44 | B31: 8 | E31: 169800 | F31: 234200 | G31: 404000 | L31: 404000
A32: 45 | B32: 8 | E32: 171500 | F32: 238700 | G32: 410200 | L32: 410200
A33: 46 | B33: 8 | E33: 173200 | F33: 243200 | G33: 416400 | L33: 416400
A34: 47 | B34: 8 | E34: 174900 | F34: 247700 | G34: 422600 | L34: 422600
A35: 48 | B35: 8 | E35: 176600 | F35: 252200 | G35: 428800 | L35: 428800
A36: 49 | B36: 8 | E36: 176600 | F36: 256700 | G36: 433300 | L36: 433300
A37: 50 | B37: 9 | E37: 176600 | F37: 274400 | G37: 451000 | L37: 451000
A38: 51 | B38: 9 | E38: 176600 | F38: 278900 | G38: 455500 | L38: 455500
A39: 52 | B39: 9 | E39: 176600 | F39: 283400 | G39: 460000 | L39: 460000
A40: 53 | B40: 9 | E40: 176600 | F40: 287900 | G40: 464500 | L40: 464500
A41: 54 | B41: 9 | E41: 176600 | F41: 292400 | G41: 469000 | L41: 469000
A42: 55 | B42: 9 | E42: 173300 | F42: 296900 | G42: 470200 | L42: 470200
A43: 56 | B43: 9 | E43: 170000 | F43: 301400 | G43: 471400 | L43: 471400
A44: 57 | B44: 9 | E44: 166700 | F44: 305900 | G44: 472600 | L44: 472600
A45: 58 | B45: 9 | E45: 163400 | F45: 310400 | G45: 473800 | L45: 473800
A46: 59 | B46: 9 | E46: 160100 | F46: 314900 | G46: 475000 | L46: 475000

Sheet グラフデータ
A3: 社員番号 | B3: 氏名 | C3: 性別 | D3: 職種 | E3: 役職 | F3: 年齢 | G3: 賃金
A4: 1001 | C4: 男 | D4: 事務一般 | E4: 部長 | F4: 59 | G4: 500000
A5: 1005 | C5: 男 | D5: 事務一般 | F5: 51 | G5: 310000
A6: 1007 | C6: 男 | D6: 事務一般 | E6: 課長 | F6: 46 | G6: 350000
A7: 1008 | C7: 男 | D7: 事務一般 | F7: 44 | G7: 330000
A8: 1011 | C8: 男 | D8: 事務一般 | F8: 39 | G8: 304000
A9: 1012 | C9: 男 | D9: 事務一般 | F9: 39 | G9: 260000
A10: 1019 | C10: 男 | D10: 事務一般 | F10: 34 | G10: 253000
A11: 1020 | C11: 男 | D11: 事務一般 | F11: 34 | G11: 250000
A12: 1022 | C12: 男 | D12: 事務一般 | F12: 33 | G12: 240000
A13: 1024 | C13: 男 | D13: 事務一般 | F13: 33 | G13: 232000
A14: 1028 | C14: 男 | D14: 事務一般 | F14: 28 | G14: 240000
A15: 1029 | C15: 男 | D15: 事務一般 | F15: 27 | G15: 225000
A16: 1031 | C16: 男 | D16: 事務一般 | F16: 25 | G16: 215000
A17: 1032 | C17: 男 | D17: 事務一般 | F17: 24 | G17: 200000
A18: 1033 | C18: 男 | D18: 事務一般 | F18: 22 | G18: 184000
A19: 1034 | C19: 男 | D19: 事務一般 | F19: 22 | G19: 189000
A20: 1035 | C20: 男 | D20: 事務一般 | F20: 22 | G20: 187000
A21: 1038 | C21: 男 | D21: 事務一般 | F21: 20 | G21: 180000
A22: 1040 | C22: 男 | D22: 事務一般 | F22: 18 | G22: 150000
A23: 2002 | C23: 男 | D23: 営業一般 | E23: 部長 | F23: 56 | G23: 500000
A24: 2006 | C24: 女 | D24: 営業一般 | F24: 48 | G24: 280000
A25: 2010 | C25: 男 | D25: 営業一般 | E25: 課長 | F25: 40 | G25: 340000
A26: 2014 | C26: 男 | D26: 営業一般 | F26: 37 | G26: 320000
A27: 2016 | C27: 男 | D27: 営業一般 | F27: 36 | G27: 282000
A28: 2017 | C28: 女 | D28: 営業一般 | F28: 36 | G28: 278000
A29: 2021 | C29: 男 | D29: 営業一般 | F29: 34 | G29: 240000
A30: 2025 | C30: 男 | D30: 営業一般 | F30: 31 | G30: 230000
A31: 2027 | C31: 男 | D31: 営業一般 | F31: 29 | G31: 225000
A32: 2030 | C32: 女 | D32: 営業一般 | F32: 26 | G32: 201000
A33: 2037 | C33: 男 | D33: 営業一般 | F33: 21 | G33: 174000
A34: 3003 | C34: 女 | D34: 営業一般 | F34: 54 | G34: 320000
A35: 3004 | C35: 男 | D35: 製造一般 | E35: 部長 | F35: 52 | G35: 460000
A36: 3009 | C36: 男 | D36: 製造一般 | E36: 課長 | F36: 41 | G36: 350000
A37: 3013 | C37: 女 | D37: 製造一般 | F37: 38 | G37: 285000
A38: 3015 | C38: 女 | D38: 製造一般 | F38: 38 | G38: 255000
A39: 3018 | C39: 女 | D39: 製造一般 | F39: 36 | G39: 275000
A40: 3023 | C40: 女 | D40: 製造一般 | F40: 33 | G40: 225000
A41: 3026 | C41: 女 | D41: 製造一般 | F41: 31 | G41: 175000
A42: 3036 | C42: 女 | D42: 製造一般 | F42: 21 | G42: 170000
A43: 3039 | C43: 女 | D43: 製造一般 | F43: 20 | G43: 150000

Sheet プロット表
B3: (類型1) | C3: (類型2) | D3: (類型3) | E3: (類型4) | F3: (類型5) | G3: (類型6) | H3: (類型7) | I3: (類型8) | J3: (類型9) | K3: (類型10) | L3: (類型11) | M3: (類型12) | N3: (類型13) | O3: (類型14)
A4: 年齢 | B4: 事務一般 | C4: 事務役職 | D4: 営業一般 | E4: 営業役職 | F4: 製造一般 | G4: 製造役職 | H4: 企画一般 | I4: 企画一般 | P4: 愉楽生計費 | Q4: 最低生計費 | R4: 厚労省統計 | S4: モデル賃金
A5: 18 | P5: 161 | Q5: 103
A6: 26 | P6: 208 | Q6: 133
A7: 30 | P7: 251 | Q7: 161
A8: 35 | P8: 295 | Q8: 189
A9: 40 | P9: 339 | Q9: 217
A15: 59 | B15: 500
A16: 51 | B16: 310
A17: 46 | B17: 350
A18: 44 | B18: 330
A19: 39 | B19: 304
A20: 39 | B20: 260
A21: 34 | B21: 253
A22: 34 | B22: 250
A23: 33 | B23: 240
A24: 33 | B24: 232
A25: 28 | B25: 240
A26: 27 | B26: 225
A27: 25 | B27: 215
A28: 24 | B28: 200
A29: 22 | B29: 184
A30: 22 | B30: 189
A31: 22 | B31: 187
A32: 20 | B32: 180
A33: 18 | B33: 150
A34: 56 | D34: 500
A35: 48 | D35: 280
A36: 40 | D36: 340
A37: 37 | D37: 320
A38: 36 | D38: 282
A39: 36 | D39: 278
A40: 34 | D40: 240
A41: 31 | D41: 230
A42: 29 | D42: 225
A43: 26 | D43: 201
A44: 21 | D44: 174
A45: 54 | D45: 320
A46: 52 | F46: 460
A47: 41 | F47: 350
A48: 38 | F48: 285
A49: 38 | F49: 255
A50: 36 | F50: 275
A51: 33 | F51: 225
A52: 31 | F52: 175
A53: 21 | F53: 170
A54: 20 | F54: 150
A2315: 18 | R2315: 140
A2316: 19 | R2316: 150
A2317: 20 | R2317: 160
A2318: 21 | R2318: 170
A2319: 22 | R2319: 180
A2320: 23 | R2320: 186
A2321: 24 | R2321: 195
A2322: 25 | R2322: 204
A2323: 26 | R2323: 210
A2324: 27 | R2324: 220
A2325: 28 | R2325: 228
A2326: 29 | R2326: 230
A2327: 30 | R2327: 250
A2328: 31 | R2328: 258
A2329: 32 | R2329: 268
A2330: 33 | R2330: 278
A2331: 34 | R2331: 288
A2332: 35 | R2332: 300
A2333: 36 | R2333: 306
A2334: 37 | R2334: 315
A2335: 38 | R2335: 325
A2336: 39 | R2336: 337
A2337: 40 | R2337: 350
A2338: 41 | R2338: 356
A2339: 42 | R2339: 362
A2340: 43 | R2340: 370
A2341: 44 | R2341: 376
A2342: 45 | R2342: 383
A2343: 46 | R2343: 390
A2344: 47 | R2344: 398
A2345: 48 | R2345: 420
A2346: 49 | R2346: 425
A2347: 50 | R2347: 430
A2348: 51 | R2348: 430
A2349: 52 | R2349: 430
A2350: 53 | R2350: 430
A2351: 54 | R2351: 430
A2352: 55 | R2352: 370
A2353: 56 | R2353: 330
A2354: 57 | R2354: 320
A2355: 58 | R2355: 310
A2356: 59 | R2356: 300
A2357: 60 | R2357: 230
A2358: 61 | R2358: 230
A2359: 62 | R2359: 230
A2360: 63 | R2360: 230
A2361: 64 | R2361: 230
A2362: 65 | R2362: 230
A2365: 18 | S2365: 150
A2366: 19 | S2366: 158
A2367: 20 | S2367: 170
A2368: 21 | S2368: 178
A2369: 22 | S2369: 191
A2370: 23 | S2370: 199
A2371: 24 | S2371: 212
A2372: 25 | S2372: 221
A2373: 26 | S2373: 229
A2374: 27 | S2374: 238
A2375: 28 | S2375: 255
A2376: 29 | S2376: 264
A2377: 30 | S2377: 272
A2378: 31 | S2378: 279
A2379: 32 | S2379: 295
A2380: 33 | S2380: 302
A2381: 34 | S2381: 310
A2382: 35 | S2382: 317
A2383: 36 | S2383: 324
A2384: 37 | S2384: 331
A2385: 38 | S2385: 352
A2386: 39 | S2386: 359
A2387: 40 | S2387: 366
A2388: 41 | S2388: 372
A2389: 42 | S2389: 378
A2390: 43 | S2390: 385
A2391: 44 | S2391: 404
A2392: 45 | S2392: 410
A2393: 46 | S2393: 416
A2394: 47 | S2394: 423
A2395: 48 | S2395: 429
A2396: 49 | S2396: 433
A2397: 50 | S2397: 451
A2398: 51 | S2398: 456
A2399: 52 | S2399: 460
A2400: 53 | S2400: 465
A2401: 54 | S2401: 469
A2402: 55 | S2402: 470
A2403: 56 | S2403: 471
A2404: 57 | S2404: 473
A2405: 58 | S2405: 474
A2406: 59 | S2406: 475
A2422: 世帯人数 | B2422: ノーマル | C2422: ミニマム | D2422: 入力値 | E2422: Nritu | F2422: Mritu | H2422: 類型化Y/N | I2422: 生計費Y/N | J2422: 指標Y/N | K2422: モデルY/N
A2423: 1 | B2423: =ROUND(D2423*E2423,0) -> 161 | C2423: =ROUND(D2423*F2423,0) -> 103 | D2423: 129 | E2423: 1.25 | F2423: 0.8 | H2423: Y | I2423: Y | J2423: Y | K2423: M
A2424: 2 | B2424: =ROUND(D2424*E2424,0) -> 208 | C2424: =ROUND(D2424*F2424,0) -> 133 | D2424: 166 | E2424: 1.25 | F2424: 0.8
A2425: 3 | B2425: =ROUND(D2425*E2425,0) -> 251 | C2425: =ROUND(D2425*F2425,0) -> 161 | D2425: 201 | E2425: 1.25 | F2425: 0.8
A2426: 4 | B2426: =ROUND(D2426*E2426,0) -> 295 | C2426: =ROUND(D2426*F2426,0) -> 189 | D2426: 236 | E2426: 1.25 | F2426: 0.8
A2427: 5 | B2427: =ROUND(D2427*E2427,0) -> 339 | C2427: =ROUND(D2427*F2427,0) -> 217 | D2427: 271 | E2427: 1.25 | F2427: 0.8
B2441: (類型1) | C2441: (類型2) | D2441: (類型3) | E2441: (類型4) | F2441: (類型5) | G2441: (類型6) | H2441: (類型7) | I2441: (類型8) | J2441: (類型9) | K2441: (類型10) | L2441: (類型11) | M2441: (類型12) | N2441: (類型13) | O2441: (類型14)
B2442: 事務一般 | C2442: 事務役職 | D2442: 営業一般 | E2442: 営業役職 | F2442: 製造一般 | G2442: 製造役職 | H2442: 企画一般 | I2442: 企画一般

Sheet 指標入力
A1: 比較指標入力シート
H2: 指標データを入力済みの場合または入力不要の場合は「次へ」をクリックしてくだい。
B4: 指標名 | C4: 厚労省統計
B6: 年齢 | C6: 賃金額 | D6: 金額単位：千円
B7: 18 | C7: 140
B8: 19 | C8: 150
B9: 20 | C9: 160
B10: 21 | C10: 170
B11: 22 | C11: 180
B12: 23 | C12: 186
B13: 24 | C13: 195
B14: 25 | C14: 204
B15: 26 | C15: 210
B16: 27 | C16: 220
B17: 28 | C17: 228
B18: 29 | C18: 230
B19: 30 | C19: 250
B20: 31 | C20: 258
B21: 32 | C21: 268
B22: 33 | C22: 278
B23: 34 | C23: 288
B24: 35 | C24: 300
B25: 36 | C25: 306
B26: 37 | C26: 315
B27: 38 | C27: 325
B28: 39 | C28: 337
B29: 40 | C29: 350
B30: 41 | C30: 356
B31: 42 | C31: 362
B32: 43 | C32: 370
B33: 44 | C33: 376
B34: 45 | C34: 383
B35: 46 | C35: 390
B36: 47 | C36: 398
B37: 48 | C37: 420
B38: 49 | C38: 425
B39: 50 | C39: 430
B40: 51 | C40: 430
B41: 52 | C41: 430
B42: 53 | C42: 430
B43: 54 | C43: 430
B44: 55 | C44: 370
B45: 56 | C45: 330
B46: 57 | C46: 320
B47: 58 | C47: 310
B48: 59 | C48: 300
B49: 60 | C49: 230
B50: 61 | C50: 230
B51: 62 | C51: 230
B52: 63 | C52: 230
B53: 64 | C53: 230
B54: 65 | C54: 230

Sheet 使用上のご注意
A1: 使用上のご注意
A3: このソフトウェアは次のことを確認のうえ、自己責任でお使いください。
A5: １．免責について
A6: 貴社（あなた）がこのソフトウェアをご利用になることで生じたいかなる損害に対しても、当方は一切の補償は
A7: いたしません。
A8: このことを了解のうえ、利用者の責任でご使用ください。
A10: ２．第三者への配布禁止
A11: このソフトウェア「賃金クリエイター」の著作権は、C&B経営コンサルティングに所属します。
A12: このソフトウェアを複製して第三者に配布することを禁止いたします。
B14: C&B経営コンサルティング
B15: 望月泰宏 平成27年9月21日
